[Event "DSAM Bad Wildungen 2024"]
[Site "Bad Wildungen"]
[Date "2024.08.01"]
[Round "2.9"]
[White "Peters, Frank"]
[Black "Kamp, Adrian"]
[Result "0-1"]
[Annotator "RC"]
[ECO "A37"]
[WhiteElo "2088"]
[BlackElo "2120"]
[PlyCount "102"]
[EventDate "2024.07.31"]
[EventCountry "GER"]
[SourceTitle "playchess.com"]
[Source "ChessBase"]
[SourceQuality "1"]
[TimeControl "40/5400+30:900+30"]

1. Nf3 {[%emt 0:01:06]} c5 {[%emt 0:00:31]} 2. c4 {[%emt 0:00:28]} Nc6 {[%emt 0:00:29]} 3. Nc3 {[%emt 0:00:32]} g6 {[%emt 0:00:36]} 4. g3 {[%emt 0:01:04]} Bg7 {[%emt 0:00:27]} 5. Bg2 {[%emt 0:00:22]} d6 {[%emt 0:00:32]} 6. O-O {[%emt 0:00:39]} e5 {[%emt 0:00:37]} 7. d3 {[%emt 0:02:04]} Nge7 {[%emt 0:00:21]} 8. Rb1 {[%emt 0:02:27]} O-O {[%emt 0:00:50]} 9. a3 {[%emt 0:00:17]} a5 {[%emt 0:04:28]} 10. Bd2 {[%emt 0:01:29]} h6 {[%emt 0:03:14]} 11. Ne1 {[%emt 0:04:42]} Bg4 {[%emt 0:09:44]} 12. Nc2 {[%emt 0:03:05]} Qd7 {[%emt 0:01:57]} 13. Ne3 {[%emt 0:02:10]} Bh3 {[%emt 0:02:17]} 14. Ned5 {[%emt 0:00:34]} Bxg2 {[%emt 0:01:22]} 15. Kxg2 {[%emt 0:00:03]} Nxd5 {[%emt 0:04:26]} 16. Nxd5 {[%emt 0:00:07]} Ne7 {[%emt 0:05:36]} 17. Bxh6 {[%emt 0:08:29]} Nxd5 {[%emt 0:00:08]} 18. Bxg7 {[%emt 0:00:08]} Nf4+ {[%emt 0:00:11]} 19. gxf4 {[%emt 0:00:30]} Kxg7 {[%emt 0:00:20]} 20. e3 {[%emt 0:05:03]} exf4 {[%emt 0:01:45]} 21. Qf3 {[%emt 0:01:45]} fxe3 {[%emt 0:08:43]} 22. fxe3 {[%emt 0:00:15]} Qe7 {[%emt 0:00:25]} 23. Qg3 {[%emt 0:13:04]} Qe5 {[%emt 0:13:44]} 24. e4 {[%emt 0:13:52]} a4 {[%emt 0:01:32]} 25. Rf2 {[%emt 0:03:44]} b5 {[%emt 0:08:25]} 26. Qxe5+ {[%emt 0:13:25]} dxe5 {[%emt 0:00:09]} 27. cxb5 {[%emt 0:03:10]} Rfb8 {[%emt 0:03:40]} 28. Rc1 {[%emt 0:03:15]} Rxb5 {[%emt 0:00:47]} 29. Rc4 {[%emt 0:00:34]} Ra7 {[%emt 0:04:40]} 30. Kf3 {[%emt 0:01:25]} Rd7 {[%emt 0:01:50]} 31. Ke3 {[%emt 0:00:38]} Rd4 {[%emt 0:00:56]} 32. Rc3 {[%emt 0:02:13]} Rd8 {[%emt 0:07:49]} 33. Rfc2 {[%emt 0:00:49]} Rh8 {[%emt 0:01:56]} 34. Rxc5 {[%emt 0:02:11]} Rh3+ {[%emt 0:00:14]} 35. Kd2 {[%emt 0:00:45]} Rxh2+ {[%emt 0:00:34]} 36. Kc1 {[%emt 0:00:27]} Rh1+ {[%emt 0:07:12]} 37. Kd2 {[%emt 0:00:08]} Rh2+ {[%emt 0:00:12]} 38. Kc1 {[%emt 0:00:11]} Rxc5 {[%emt 0:00:30]} 39. Rxc5 {[%emt 0:00:44]} Kf6 {[%emt 0:00:07]} 40. Rc4 {[%emt 0:07:37]} g5 {[%emt 0:00:24]} 41. Rxa4 {[%emt 0:15:14]} g4 {[%emt 0:15:38]} 42. Ra8 {[%emt 0:01:18]} g3 {[%emt 0:01:44]} 43. Rg8 {[%emt 0:00:23]} g2 {[%emt 0:00:07]} 44. a4 {[%emt 0:00:43]} Rh1+ {[%emt 0:00:21]} 45. Kc2 {[%emt 0:00:10]} g1=Q 46. Rxg1 {[%emt 0:00:07]} Rxg1 {[%emt 0:00:16]} 47. b4 {[%emt 0:00:21]} Ke6 {[%emt 0:00:17]} 48. Kc3 {[%emt 0:00:12]} Rc1+ {[%emt 0:04:13]} 49. Kb2 {[%emt 0:00:14]} Rd1 {[%emt 0:00:29]} 50. Kc2 {[%emt 0:00:10]} Ra1 {[%emt 0:00:10]} 51. a5 {[%emt 0:00:31]} Ra3 {[%emt 0:00:52]} 0-1

[Event "DSAM Bad Wildungen 2024"]
[Site "Bad Wildungen"]
[Date "2024.08.01"]
[Round "2.10"]
[White "Zhou, Lepu Coco"]
[Black "Kull, Florian"]
[Result "0-1"]
[Annotator "RC"]
[ECO "B12"]
[WhiteElo "2095"]
[BlackElo "2113"]
[PlyCount "74"]
[EventDate "2024.07.31"]
[EventCountry "GER"]
[SourceTitle "playchess.com"]
[Source "ChessBase"]
[SourceQuality "1"]
[TimeControl "40/5400+30:900+30"]

1. e4 {[%emt 0:00:10]} c6 {[%emt 0:07:09]} 2. d4 {[%emt 0:00:26]} d5 {[%emt 0:00:22]} 3. e5 {[%emt 0:01:31]} Bf5 {[%emt 0:00:20]} 4. h4 {[%emt 0:00:13]} h5 {[%emt 0:00:16]} 5. Bd3 {[%emt 0:00:08]} Bxd3 {[%emt 0:00:18]} 6. Qxd3 {[%emt 0:00:07]} Qa5+ {[%emt 0:00:55]} 7. c3 {[%emt 0:03:56]} Qa6 {[%emt 0:00:36]} 8. Qxa6 {[%emt 0:01:25]} Nxa6 {[%emt 0:00:02]} 9. e6 {[%emt 0:01:19]} f6 {[%emt 0:00:19]} 10. Nh3 {[%emt 0:02:11]} Nh6 {[%emt 0:03:47]} 11. Nf4 {[%emt 0:01:50]} Nf5 {[%emt 0:00:51]} 12. Na3 {[%emt 0:13:39]} Nc7 {[%emt 0:01:56]} 13. Bd2 {[%emt 0:05:03]} g6 {[%emt 0:03:26]} 14. O-O-O {[%emt 0:03:53]} Bh6 {[%emt 0:05:51]} 15. Nxg6 {[%emt 0:12:46]} Rg8 {[%emt 0:00:35]} 16. g4 {[%emt 0:01:39]} hxg4 {[%emt 0:02:04]} 17. h5 {[%emt 0:00:04]} Nxe6 {[%emt 0:04:09]} 18. Bxh6 {[%emt 0:02:09]} Nxh6 {[%emt 0:00:09]} 19. Rde1 {[%emt 0:00:23]} Kd7 {[%emt 0:02:22]} 20. Re2 {[%emt 0:00:08]} Rae8 {[%emt 0:02:03]} 21. Rhe1 {[%emt 0:00:12]} Rxg6 {[%emt 0:06:30]} 22. hxg6 {[%emt 0:00:20]} Nf4 {[%emt 0:00:09]} 23. Rd2 {[%emt 0:00:08]} Nxg6 {[%emt 0:00:14]} 24. Nc2 {[%emt 0:00:35]} f5 {[%emt 0:05:06]} 25. Rh1 {[%emt 0:03:19]} Nf7 {[%emt 0:01:18]} 26. Ne3 {[%emt 0:02:40]} e6 {[%emt 0:00:36]} 27. Rh7 {[%emt 0:02:29]} Re7 {[%emt 0:00:13]} 28. Rg7 {[%emt 0:04:04]} Nf4 {[%emt 0:01:56]} 29. f3 {[%emt 0:00:59]} gxf3 {[%emt 0:00:53]} 30. Rg3 {[%emt 0:00:10]} Ne2+ {[%emt 0:00:14]} 31. Rxe2 {[%emt 0:00:28]} fxe2 {[%emt 0:00:08]} 32. Ng2 {[%emt 0:00:38]} e5 {[%emt 0:02:06]} 33. dxe5 {[%emt 0:00:14]} f4 {[%emt 0:01:09]} 34. Rh3 {[%emt 0:02:59]} Nxe5 {[%emt 0:00:19]} 35. Kd2 {[%emt 0:01:12]} f3 {[%emt 0:00:18]} 36. Nh4 {[%emt 0:00:47]} Nc4+ {[%emt 0:00:19]} 37. Ke1 {[%emt 0:00:08]} f2+ {[%emt 0:00:08]} 0-1

[Event "DSAM Bad Wildungen 2024"]
[Site "Bad Wildungen"]
[Date "2024.08.01"]
[Round "2.11"]
[White "Heck, Norbert"]
[Black "Richter, Jan"]
[Result "1-0"]
[Annotator "RC"]
[ECO "A30"]
[WhiteElo "2099"]
[BlackElo "2048"]
[PlyCount "41"]
[EventDate "2024.07.31"]
[EventCountry "GER"]
[SourceTitle "playchess.com"]
[Source "ChessBase"]
[SourceQuality "1"]
[TimeControl "40/5400+30:900+30"]

1. Nf3 {[%emt 0:00:09]} c5 {[%emt 0:00:19]} 2. c4 {[%emt 0:00:08]} g6 {[%emt 0:00:39]} 3. g3 {[%emt 0:00:11]} b6 {[%emt 0:00:08]} 4. Bg2 {[%emt 0:00:06]} Bb7 {[%emt 0:00:06]} 5. Nc3 {[%emt 0:00:05]} Bg7 {[%emt 0:00:06]} 6. O-O {[%emt 0:00:07]} Nf6 {[%emt 0:00:40]} 7. Re1 {[%emt 0:00:29]} O-O {[%emt 0:00:49]} 8. e4 {[%emt 0:00:11]} d6 {[%emt 0:00:16]} 9. d4 {[%emt 0:00:14]} cxd4 {[%emt 0:05:22]} 10. Nxd4 {[%emt 0:00:10]} Qd7 {[%emt 0:00:15]} 11. h3 {[%emt 1:34:10]} Na6 {[%emt 0:20:39]} 12. Be3 {[%emt 0:22:04]} Nc5 {[%emt 0:05:45]} 13. Qc2 {[%emt 0:02:17]} Rac8 {[%emt 0:11:28]} 14. Rad1 {[%emt 0:00:30]} Ba8 {[%emt 0:01:24]} 15. f4 {[%emt 0:10:02]} Rfd8 {[%emt 0:19:18]} 16. Bf2 {[%emt 0:02:49]} Qb7 {[%emt 0:04:42]} 17. Qe2 {[%emt 0:53:18]} a6 {[%emt 0:00:52]} 18. Nd5 {[%emt 0:03:40]} e6 {[%emt 0:03:05]} 19. e5 {[%emt 0:12:36]} Nxd5 {[%emt 0:00:27]} 20. cxd5 {[%emt 0:00:10]} exd5 {[%emt 0:00:30]} 21. e6 {[%emt 0:00:30]} 1-0

[Event "DSAM Bad Wildungen 2024"]
[Site "Bad Wildungen"]
[Date "2024.08.01"]
[Round "2.12"]
[White "Buchinger, Alexis"]
[Black "Meier, David Geffrey"]
[Result "1-0"]
[Annotator "RC"]
[ECO "A42"]
[WhiteElo "2116"]
[BlackElo "2105"]
[PlyCount "85"]
[EventDate "2024.07.31"]
[EventCountry "GER"]
[SourceTitle "playchess.com"]
[Source "ChessBase"]
[SourceQuality "1"]
[TimeControl "40/5400+30:900+30"]

1. e4 {[%emt 0:00:07]} g6 {[%emt 0:03:38]} 2. d4 {[%emt 0:00:18]} Bg7 {[%emt 0:00:12]} 3. c4 {[%emt 0:00:20]} d6 {[%emt 0:00:33]} 4. Nc3 {[%emt 0:00:40]} Nc6 {[%emt 0:01:31]} 5. d5 {[%emt 0:00:36]} Nd4 {[%emt 0:00:59]} 6. Be3 {[%emt 0:09:40]} c5 {[%emt 0:00:39]} 7. Nge2 {[%emt 0:02:31]} Bg4 {[%emt 0:09:22]} 8. f3 {[%emt 0:02:54]} Nxe2 {[%emt 0:05:20]} 9. Bxe2 {[%emt 0:00:29]} Bd7 {[%emt 0:00:39]} 10. Qb3 {[%emt 0:00:31]} Rb8 {[%emt 0:03:17]} 11. O-O {[%emt 0:01:22]} Nf6 {[%emt 0:00:38]} 12. e5 {[%emt 0:25:21]} dxe5 {[%emt 0:01:10]} 13. Bxc5 {[%emt 0:00:17]} b6 {[%emt 0:00:58]} 14. Ba3 {[%emt 0:07:49]} O-O {[%emt 0:00:24]} 15. d6 {[%emt 0:00:37]} e6 {[%emt 0:00:21]} 16. Rad1 {[%emt 0:11:10]} h5 {[%emt 0:01:25]} 17. Ne4 {[%emt 0:04:31]} Nh7 {[%emt 0:05:37]} 18. Qd3 {[%emt 0:09:35]} f5 {[%emt 0:02:12]} 19. Nc3 {[%emt 0:01:05]} Rf7 {[%emt 0:10:10]} 20. b4 {[%emt 0:01:50]} Nf6 {[%emt 0:01:05]} 21. c5 {[%emt 0:06:56]} bxc5 {[%emt 0:00:35]} 22. bxc5 {[%emt 0:01:41]} Bc6 {[%emt 0:04:53]} 23. Qa6 {[%emt 0:02:12]} Qe8 {[%emt 0:03:43]} 24. Bc4 {[%emt 0:04:33]} Bb7 {[%emt 0:02:51]} 25. Qb5 {[%emt 0:02:25]} Bc6 {[%emt 0:00:14]} 26. Qa6 {[%emt 0:00:35]} Bb7 {[%emt 0:00:02]} 27. d7 {[%emt 0:01:30]} Rxd7 {[%emt 0:07:40]} 28. Qxe6+ {[%emt 0:00:25]} Kh7 {[%emt 0:03:04]} 29. Qxe8 {[%emt 0:00:10]} Rxe8 {[%emt 0:00:17]} 30. Rxd7 {[%emt 0:00:22]} Nxd7 {[%emt 0:00:01]} 31. Bb5 {[%emt 0:00:53]} e4 {[%emt 0:02:20]} 32. Bxd7 {[%emt 0:00:58]} Bd4+ {[%emt 0:01:39]} 33. Kh1 {[%emt 0:00:18]} exf3 {[%emt 0:01:24]} 34. c6 {[%emt 0:02:14]} fxg2+ {[%emt 0:09:02]} 35. Kxg2 {[%emt 0:00:03]} Bxc6+ {[%emt 0:01:20]} 36. Bxc6 {[%emt 0:00:08]} Rc8 {[%emt 0:00:22]} 37. Nb5 {[%emt 0:01:12]} Bb6 {[%emt 0:00:27]} 38. Rc1 {[%emt 0:00:12]} Rd8 {[%emt 0:01:34]} 39. Nd6 {[%emt 0:00:35]} Be3 {[%emt 0:00:49]} 40. Rb1 {[%emt 0:00:37]} Bb6 {[%emt 0:03:11]} 41. Re1 {[%emt 0:15:20]} g5 {[%emt 0:16:30]} 42. Re8 {[%emt 0:00:16]} f4 {[%emt 0:01:14]} 43. Be4+ {[%emt 0:00:35]} 1-0

[Event "DSAM Bad Wildungen 2024"]
[Site "Bad Wildungen"]
[Date "2024.08.01"]
[Round "2.13"]
[White "von Reppert, Marc"]
[Black "Bartelt, Max Peter"]
[Result "0-1"]
[Annotator "RC"]
[ECO "C02"]
[WhiteElo "1959"]
[BlackElo "2069"]
[PlyCount "70"]
[EventDate "2024.07.31"]
[EventCountry "GER"]
[SourceTitle "playchess.com"]
[Source "ChessBase"]
[SourceQuality "1"]
[TimeControl "40/5400+30:900+30"]

1. e4 {[%emt 0:00:06]} e6 {[%emt 0:04:28]} 2. d4 {[%emt 0:00:12]} d5 {[%emt 0:00:06]} 3. e5 {[%emt 0:00:25]} c5 {[%emt 0:00:06]} 4. c3 {[%emt 0:00:05]} Nc6 {[%emt 0:00:03]} 5. Nf3 {[%emt 0:00:18]} Qb6 {[%emt 0:01:09]} 6. a3 {[%emt 0:00:23]} c4 {[%emt 0:01:32]} 7. Nbd2 {[%emt 0:00:48]} Na5 {[%emt 0:00:45]} 8. Be2 {[%emt 0:00:25]} Bd7 {[%emt 0:01:17]} 9. O-O {[%emt 0:00:56]} Be7 {[%emt 0:04:18]} 10. Rb1 {[%emt 0:03:03]} Rc8 {[%emt 0:00:43]} 11. Qc2 {[%emt 0:15:11]} Nh6 {[%emt 0:06:46]} 12. b3 {[%emt 0:14:51]} cxb3 {[%emt 0:03:07]} 13. Nxb3 {[%emt 0:01:59]} Ba4 {[%emt 0:01:10]} 14. Nfd2 {[%emt 0:00:21]} Qc7 {[%emt 0:03:59]} 15. Qa2 {[%emt 0:13:17]} Nf5 {[%emt 0:16:45]} 16. Nxa5 {[%emt 0:12:14]} Qxa5 {[%emt 0:00:07]} 17. Nb3 {[%emt 0:02:19]} Qxc3 {[%emt 0:01:46]} 18. Bd2 {[%emt 0:14:52]} Qc2 {[%emt 0:08:30]} 19. Rb2 {[%emt 0:00:34]} Qe4 {[%emt 0:00:59]} 20. Re1 {[%emt 0:06:54]} O-O {[%emt 0:05:17]} 21. Nc5 {[%emt 0:03:21]} Bxc5 {[%emt 0:01:26]} 22. dxc5 {[%emt 0:00:27]} Nd4 {[%emt 0:03:03]} 23. Bd1 {[%emt 0:02:07]} Qg6 {[%emt 0:03:41]} 24. Bxa4 {[%emt 0:01:41]} Nf3+ {[%emt 0:00:04]} 25. Kh1 {[%emt 0:02:10]} Nxe1 {[%emt 0:00:15]} 26. Bxe1 {[%emt 0:00:03]} Qe4 {[%emt 0:00:43]} 27. Bb4 {[%emt 0:01:19]} a5 {[%emt 0:00:54]} 28. Re2 {[%emt 0:02:22]} Qd4 {[%emt 0:00:42]} 29. Rd2 {[%emt 0:01:17]} Qf4 {[%emt 0:00:25]} 30. Bd7 {[%emt 0:00:52]} axb4 {[%emt 0:01:58]} 31. Bxc8 {[%emt 0:00:37]} b3 {[%emt 0:00:05]} 32. Qb2 {[%emt 0:00:26]} Rxc8 {[%emt 0:00:34]} 33. Rd3 {[%emt 0:00:27]} Rxc5 {[%emt 0:00:23]} 34. Qxb3 {[%emt 0:00:31]} Rc1+ {[%emt 0:00:06]} 35. Rd1 {[%emt 0:00:07]} Qd2 {[%emt 0:00:04]} 0-1

[Event "DSAM Bad Wildungen 2024"]
[Site "Bad Wildungen"]
[Date "2024.08.01"]
[Round "2.14"]
[White "Schueller, Tobias"]
[Black "Vladov, Arsenii"]
[Result "0-1"]
[Annotator "RC"]
[ECO "A41"]
[WhiteElo "2018"]
[BlackElo "2063"]
[PlyCount "106"]
[EventDate "2024.07.31"]
[EventCountry "GER"]
[SourceTitle "playchess.com"]
[Source "ChessBase"]
[SourceQuality "1"]
[TimeControl "40/5400+30:900+30"]

1. c4 {[%emt 0:00:02]} d6 {[%emt 0:00:05]} 2. d4 {[%emt 0:02:15]} e5 {[%emt 0:00:04]} 3. dxe5 {[%emt 0:01:12]} dxe5 {[%emt 0:00:04]} 4. Qxd8+ {[%emt 0:00:06]} Kxd8 {[%emt 0:00:03]} 5. Nc3 {[%emt 0:00:31]} Be6 {[%emt 0:00:23]} 6. b3 {[%emt 0:01:02]} c6 {[%emt 0:00:29]} 7. g3 {[%emt 0:02:02]} Nd7 {[%emt 0:02:10]} 8. Nf3 {[%emt 0:02:53]} f6 {[%emt 0:00:19]} 9. Bg2 {[%emt 0:02:29]} Kc7 {[%emt 0:01:21]} 10. Bd2 {[%emt 0:03:26]} Rd8 {[%emt 0:01:38]} 11. Ne4 {[%emt 0:05:16]} Nc5 {[%emt 0:02:47]} 12. Ba5+ {[%emt 0:02:51]} b6 {[%emt 0:00:06]} 13. Nxc5 {[%emt 0:00:07]} Bxc5 {[%emt 0:00:05]} 14. Bc3 {[%emt 0:01:17]} Be7 {[%emt 0:11:17]} 15. Nxe5 {[%emt 0:04:43]} fxe5 {[%emt 0:00:11]} 16. Bxe5+ {[%emt 0:00:05]} Kb7 {[%emt 0:01:12]} 17. Bxg7 {[%emt 0:00:09]} Bf6 {[%emt 0:00:12]} 18. Bxh8 {[%emt 0:00:20]} Bxh8 {[%emt 0:00:04]} 19. Rc1 {[%emt 0:02:05]} Bb2 {[%emt 0:02:51]} 20. Rc2 {[%emt 0:02:52]} Ba3 {[%emt 0:00:06]} 21. e4 {[%emt 0:01:43]} Nf6 {[%emt 0:02:52]} 22. Ke2 {[%emt 0:03:45]} Bc5 {[%emt 0:01:34]} 23. f3 {[%emt 0:11:02]} Rf8 {[%emt 0:06:29]} 24. Rf1 {[%emt 0:05:32]} h5 {[%emt 0:02:33]} 25. Rd2 {[%emt 0:05:32]} Kc7 {[%emt 0:01:56]} 26. h3 {[%emt 0:10:21]} Rg8 {[%emt 0:05:14]} 27. g4 {[%emt 0:01:07]} Bd6 {[%emt 0:01:35]} 28. Rxd6 {[%emt 0:14:25]} Kxd6 {[%emt 0:00:18]} 29. f4 {[%emt 0:01:44]} hxg4 {[%emt 0:15:35]} 30. e5+ {[%emt 0:01:32]} Kc5 {[%emt 0:00:14]} 31. exf6 {[%emt 0:02:26]} gxh3 {[%emt 0:00:06]} 32. Be4 {[%emt 0:06:16]} Rf8 {[%emt 0:21:33]} 33. f5 {[%emt 0:00:39]} Bd7 {[%emt 0:00:04]} 34. Ke3 {[%emt 0:01:11]} Rxf6 {[%emt 0:00:14]} 35. Kf4 {[%emt 0:00:40]} h2 {[%emt 0:07:57]} 36. Rh1 {[%emt 0:03:56]} Rh6 {[%emt 0:00:05]} 37. Kg5 {[%emt 0:00:20]} Rh8 {[%emt 0:00:35]} 38. Kg6 {[%emt 0:00:53]} Rh4 {[%emt 0:06:34]} 39. Bb1 {[%emt 0:00:16]} Kd6 {[%emt 0:06:18]} 40. Kg5 {[%emt 0:00:39]} Rh8 {[%emt 0:00:13]} 41. Bc2 {[%emt 0:04:51]} Ke5 {[%emt 0:07:31]} 42. Re1+ {[%emt 0:00:29]} Kd4 {[%emt 0:01:07]} 43. Rh1 {[%emt 0:04:54]} c5 {[%emt 0:00:41]} 44. f6 {[%emt 0:01:39]} Bc6 {[%emt 0:01:29]} 45. Rxh2 {[%emt 0:03:01]} Rxh2 {[%emt 0:00:03]} 46. f7 {[%emt 0:00:05]} Rf2 {[%emt 0:05:25]} 47. Bf5 {[%emt 0:01:44]} Bd7 {[%emt 0:00:03]} 48. f8=Q {[%emt 0:00:48]} Rxf5+ {[%emt 0:00:04]} 49. Qxf5 {[%emt 0:00:10]} Bxf5 {[%emt 0:00:03]} 50. Kxf5 {[%emt 0:00:06]} Kc3 {[%emt 0:00:02]} 51. Ke4 {[%emt 0:00:13]} Kb2 {[%emt 0:00:06]} 52. Kd3 {[%emt 0:00:10]} Kxa2 {[%emt 0:00:03]} 53. Kc3 {[%emt 0:01:06]} Ka3 {[%emt 0:00:03]} 0-1

[Event "DSAM Bad Wildungen 2024"]
[Site "Bad Wildungen"]
[Date "2024.08.01"]
[Round "2.15"]
[White "Schmalz, Dirk"]
[Black "Lu, Yunong Elias"]
[Result "1/2-1/2"]
[Annotator "RC"]
[ECO "B14"]
[WhiteElo "1945"]
[BlackElo "1996"]
[PlyCount "108"]
[EventDate "2024.07.31"]
[EventCountry "GER"]
[SourceTitle "playchess.com"]
[Source "ChessBase"]
[SourceQuality "1"]
[TimeControl "40/5400+30:900+30"]

1. e4 {[%emt 0:00:04]} c6 {[%emt 0:00:14]} 2. d4 {[%emt 0:00:02]} d5 {[%emt 0:00:06]} 3. exd5 {[%emt 0:00:04]} cxd5 {[%emt 0:00:07]} 4. c4 {[%emt 0:00:06]} Nf6 {[%emt 0:00:02]} 5. Nc3 {[%emt 0:00:15]} g6 {[%emt 0:00:06]} 6. Qb3 {[%emt 0:00:14]} Bg7 {[%emt 0:00:05]} 7. cxd5 {[%emt 0:00:23]} O-O {[%emt 0:00:07]} 8. Be2 {[%emt 0:00:16]} Nbd7 {[%emt 0:00:46]} 9. Bf3 {[%emt 0:00:37]} Nb6 {[%emt 0:00:12]} 10. h3 {[%emt 0:03:21]} Bf5 {[%emt 0:03:16]} 11. a4 {[%emt 0:11:36]} a5 {[%emt 0:02:24]} 12. Bf4 {[%emt 0:03:10]} Bd3 {[%emt 0:04:11]} 13. d6 {[%emt 0:03:06]} exd6 {[%emt 0:02:30]} 14. Nge2 {[%emt 0:00:21]} Bc4 {[%emt 0:03:30]} 15. Qa3 {[%emt 0:04:28]} d5 {[%emt 0:00:15]} 16. O-O {[%emt 0:02:00]} Re8 {[%emt 0:01:54]} 17. b3 {[%emt 0:01:02]} Ba6 {[%emt 0:03:03]} 18. Rac1 {[%emt 0:02:17]} Rc8 {[%emt 0:01:04]} 19. Nb5 {[%emt 0:05:19]} Ne4 {[%emt 0:33:12]} 20. Nc7 {[%emt 0:24:42]} Re7 {[%emt 0:06:10]} 21. Nxa6 {[%emt 0:00:35]} bxa6 {[%emt 0:04:00]} 22. Rxc8 {[%emt 0:02:37]} Nxc8 {[%emt 0:00:06]} 23. Rc1 {[%emt 0:00:09]} Re6 {[%emt 0:34:40]} 24. Bc7 {[%emt 0:05:21]} Qe8 {[%emt 0:00:00]} 25. Rc2 {[%emt 0:07:38]} Ng5 {[%emt 0:00:00]} 26. Qb2 {[%emt 0:10:14]} Nxf3+ {[%emt 0:01:30]} 27. gxf3 {[%emt 0:14:03]} Rc6 {[%emt 0:00:00]} 28. Bxa5 {[%emt 0:00:00]} Ne7 {[%emt 0:00:00]} 29. Qc1 {[%emt 0:00:00]} Rxc2 {[%emt 0:00:00]} 30. Qxc2 {[%emt 0:00:00]} Nf5 {[%emt 0:00:00]} 31. Qd3 {[%emt 0:00:00]} Qc6 {[%emt 0:00:00]} 32. Bc3 {[%emt 0:00:00]} h5 {[%emt 0:00:00]} 33. Ng3 {[%emt 0:00:00]} Nd6 {[%emt 0:00:47]} 34. Bb4 {[%emt 0:00:00]} Ne8 {[%emt 0:00:43]} 35. Bc5 {[%emt 0:00:00]} Nc7 {[%emt 0:00:10]} 36. Qd1 {[%emt 0:00:25]} a5 {[%emt 0:02:05]} 37. Qe1 {[%emt 0:00:09]} Ne6 {[%emt 0:00:25]} 38. Qc3 {[%emt 0:01:37]} Nxd4 {[%emt 0:00:50]} 39. Bxd4 {[%emt 0:01:50]} Qxc3 {[%emt 0:00:03]} 40. Bxc3 {[%emt 0:00:04]} Bxc3 {[%emt 0:00:02]} 41. Kf1 {[%emt 0:15:50]} Kg7 {[%emt 0:16:15]} 42. Ke2 {[%emt 0:00:21]} Kf6 {[%emt 0:00:41]} 43. Kd3 {[%emt 0:00:04]} Be1 {[%emt 0:00:35]} 44. Ke3 {[%emt 0:00:59]} Ke5 {[%emt 0:00:39]} 45. Ne2 {[%emt 0:00:00]} g5 {[%emt 0:00:00]} 46. Nc1 {[%emt 0:00:00]} Bc3 {[%emt 0:00:00]} 47. Nd3+ {[%emt 0:00:00]} Kd6 {[%emt 0:00:00]} 48. f4 {[%emt 0:00:00]} f6 {[%emt 0:00:00]} 49. fxg5 {[%emt 0:00:06]} fxg5 {[%emt 0:00:14]} 50. f3 {[%emt 0:01:11]} Ke6 {[%emt 0:01:07]} 51. Kf2 {[%emt 0:03:04]} Kf5 {[%emt 0:00:22]} 52. Kg3 {[%emt 0:00:26]} Bd2 {[%emt 0:01:55]} 53. Kf2 {[%emt 0:00:28]} h4 {[%emt 0:00:37]} 54. Ke2 {[%emt 0:00:20]} Bc3 {[%emt 0:00:07]} 1/2-1/2

[Event "DSAM Bad Wildungen 2024"]
[Site "Bad Wildungen"]
[Date "2024.08.01"]
[Round "2.16"]
[White "Derr, Oleg"]
[Black "Bongardt, Livius"]
[Result "1-0"]
[Annotator "RC"]
[ECO "C55"]
[WhiteElo "1947"]
[BlackElo "1875"]
[PlyCount "141"]
[EventDate "2024.07.31"]
[EventCountry "GER"]
[SourceTitle "playchess.com"]
[Source "ChessBase"]
[SourceQuality "1"]
[TimeControl "40/5400+30:900+30"]

1. e4 {[%emt 0:00:01]} e5 {[%emt 0:00:06]} 2. Nf3 {[%emt 0:00:02]} Nc6 {[%emt 0:00:04]} 3. Bc4 {[%emt 0:00:05]} Nf6 {[%emt 0:00:04]} 4. d3 {[%emt 0:00:05]} Be7 {[%emt 0:00:05]} 5. O-O {[%emt 0:00:09]} O-O {[%emt 0:00:05]} 6. Nc3 {[%emt 0:00:21]} d6 {[%emt 0:00:06]} 7. a4 {[%emt 0:00:03]} Kh8 {[%emt 0:04:24]} 8. h3 {[%emt 0:03:12]} Ng8 {[%emt 0:02:19]} 9. d4 {[%emt 0:01:09]} Nxd4 {[%emt 0:00:26]} 10. Nxd4 {[%emt 0:00:07]} exd4 {[%emt 0:00:02]} 11. Qxd4 {[%emt 0:00:09]} f5 {[%emt 0:01:40]} 12. Nd5 {[%emt 0:03:22]} fxe4 {[%emt 0:03:19]} 13. Qxe4 {[%emt 0:01:45]} Bf5 {[%emt 0:03:10]} 14. Qe2 {[%emt 0:00:44]} c6 {[%emt 0:08:03]} 15. Nxe7 {[%emt 0:00:35]} Qxe7 {[%emt 0:01:59]} 16. Qxe7 {[%emt 0:03:41]} Nxe7 {[%emt 0:00:01]} 17. Re1 {[%emt 0:02:43]} Ng6 {[%emt 0:00:53]} 18. c3 {[%emt 0:00:45]} Ne5 {[%emt 0:01:57]} 19. Be2 {[%emt 0:00:18]} Bd3 {[%emt 0:18:03]} 20. f4 {[%emt 1:21:14]} Bxe2 {[%emt 0:00:06]} 21. fxe5 {[%emt 0:00:00]} Bc4 {[%emt 0:01:15]} 22. exd6 {[%emt 0:00:00]} Rf6 {[%emt 0:08:11]} 23. d7 {[%emt 0:00:00]} h6 {[%emt 0:00:13]} 24. Be3 {[%emt 0:00:00]} Rd8 {[%emt 0:17:57]} 25. Rad1 {[%emt 0:00:00]} Rf7 {[%emt 0:02:45]} 26. Bxa7 {[%emt 0:00:00]} Rfxd7 {[%emt 0:00:14]} 27. Re8+ {[%emt 0:00:00]} Rxe8 {[%emt 0:00:11]} 28. Rxd7 {[%emt 0:00:00]} Re1+ {[%emt 0:11:08]} 29. Kh2 {[%emt 0:00:00]} Re2 {[%emt 0:00:02]} 30. Bd4 {[%emt 0:00:00]} Rxb2 {[%emt 0:02:21]} 31. Rxg7 {[%emt 0:00:00]} Ra2 {[%emt 0:03:56]} 32. a5 {[%emt 0:00:00]} Bd5 {[%emt 0:00:26]} 33. Bf6 {[%emt 0:00:00]} Rf2 {[%emt 0:02:53]} 34. Be5 {[%emt 0:00:00]} Re2 {[%emt 0:00:48]} 35. Bd4 {[%emt 0:00:00]} Ra2 {[%emt 0:00:24]} 36. Rxb7+ {[%emt 0:00:00]} Kg8 {[%emt 0:00:07]} 37. Rg7+ {[%emt 0:00:00]} Kf8 {[%emt 0:01:08]} 38. Rg3 {[%emt 0:00:00]} h5 {[%emt 0:01:48]} 39. Bb6 {[%emt 0:00:00]} Kf7 {[%emt 0:00:29]} 40. Rg5 {[%emt 0:00:00]} Kf6 {[%emt 0:01:06]} 41. Bd8+ {[%emt 0:00:00]} Ke6 {[%emt 0:15:12]} 42. Bb6 {[%emt 0:00:00]} Kf6 {[%emt 0:00:09]} 43. h4 {[%emt 0:00:00]} Ke6 {[%emt 0:01:51]} 44. c4 {[%emt 0:00:00]} Bf3 {[%emt 0:00:30]} 45. a6 {[%emt 0:00:00]} Rxa6 {[%emt 0:00:51]} 46. gxf3 {[%emt 0:00:00]} Rxb6 {[%emt 0:00:03]} 47. Rxh5 {[%emt 0:00:00]} Rb4 {[%emt 0:00:24]} 48. c5 {[%emt 0:00:00]} Rb2+ {[%emt 0:00:44]} 49. Kg3 {[%emt 0:00:00]} Rb1 {[%emt 0:00:15]} 50. Kg4 {[%emt 0:00:00]} Rg1+ {[%emt 0:00:27]} 51. Kf4 {[%emt 0:00:00]} Rh1 {[%emt 0:00:14]} 52. Kg3 {[%emt 0:00:00]} Rg1+ {[%emt 0:00:14]} 53. Kf2 {[%emt 0:00:10]} Rc1 {[%emt 0:00:41]} 54. Rg5 {[%emt 0:00:24]} Rc2+ {[%emt 0:00:28]} 55. Kg3 {[%emt 0:00:08]} Rc1 {[%emt 0:00:10]} 56. h5 {[%emt 0:00:29]} Rg1+ {[%emt 0:00:17]} 57. Kf4 {[%emt 0:00:06]} Rh1 {[%emt 0:00:09]} 58. Re5+ {[%emt 0:01:59]} Kf6 {[%emt 0:00:07]} 59. Rf5+ {[%emt 0:00:05]} Ke6 {[%emt 0:01:06]} 60. Rg5 {[%emt 0:00:06]} Rh4+ {[%emt 0:00:29]} 61. Kg3 {[%emt 0:00:48]} Rh1 {[%emt 0:00:19]} 62. Kg4 {[%emt 0:00:07]} Rg1+ {[%emt 0:00:25]} 63. Kf4 {[%emt 0:00:05]} Rh1 {[%emt 0:00:14]} 64. Ke4 {[%emt 0:01:56]} Re1+ {[%emt 0:00:13]} 65. Kd4 {[%emt 0:00:06]} Rd1+ {[%emt 0:00:13]} 66. Kc4 {[%emt 0:00:07]} Rc1+ {[%emt 0:00:05]} 67. Kb4 {[%emt 0:00:45]} Rh1 {[%emt 0:00:11]} 68. Rg6+ {[%emt 0:02:54]} Kd5 {[%emt 0:00:17]} 69. Rd6+ {[%emt 0:00:11]} Ke5 {[%emt 0:00:06]} 70. h6 {[%emt 0:01:35]} Rb1+ {[%emt 0:01:24]} 71. Ka5 {[%emt 0:00:07]} 1-0